{"text_format":"1","workbook":"xlsx","n_sheets":3,"sheets":["ورقة1","ورقة2","ورقة3"],"not_rendered":{"charts":0,"images":0,"macros":1,"external_links":0,"defined_names":2,"comments":0,"pivot_tables":0},"unopened":[],"bounds":{"document_bytes":16777216,"sheet_cells":100000,"rows_first":2000,"rows_last":500,"rows_between":2000,"halvings":0,"cell_chars":16384,"cell_head_chars":4096},"cells_cut":0,"cells_raw":0,"read":"whole","date_system":"1900"}

{"sheet":"ورقة1","index":0,"n_rows":39,"n_cols":15,"rows_kept":39,"cut":false,"hidden":false,"merged":[[37,1,37,10],[11,3,11,9],[6,0,6,3],[6,4,6,11],[33,3,33,9],[34,0,34,11],[35,0,35,1],[36,1,36,2],[36,4,36,5],[36,7,36,8],[36,10,36,11],[28,5,29,7],[30,0,30,3],[30,4,30,12],[32,0,32,10],[33,0,33,2],[25,0,25,2],[25,3,25,7],[26,0,26,1],[26,2,26,9],[27,1,27,4],[27,5,27,11],[21,0,21,2],[21,10,22,11],[22,0,22,2],[22,6,23,8],[23,0,23,2],[23,3,23,5],[1,6,2,8],[0,10,1,11],[2,0,2,2],[1,0,1,2],[0,0,0,2],[2,3,2,5],[9,0,9,3],[9,4,9,12],[15,1,15,10],[4,0,4,2],[4,3,4,7],[5,0,5,1],[7,5,8,7],[5,2,5,9],[10,0,10,10],[11,0,11,2],[14,1,14,2],[14,7,14,8],[14,10,14,11],[13,0,13,1],[14,4,14,5],[12,0,12,11]]}
["وزارة التربية والتعليم ",null,null,null,null,null,null,null,null,null,"2018-2019"]
["الإدارة العامة للأمتحانات ",null,null,null,null,null,"اخلاء طرف ",null,null,null,null,null,null,null,1]
["لجنة الإدارة _ قطاع ",null,null,null,null,null,null,null,null,null,null,null,null,null,{"$f":"COUNT(ورقة2!A:A)","v":100}]
[]
["مديرية التربية والتعليم بـ",null,null,{"$f":"VLOOKUP(O2,ahmed,3)","v":0},null,null,null,null,null,null,"إدارة",{"$f":"VLOOKUP(O2,ahmed,4)","v":0}]
["لجنة مدرسة :",null,{"$f":"ورقة2!C3","v":0},null,null,null,null,null,null,null," : رقم ",{"$f":"ورقة2!C4","v":0}]
["السيد الأستاذ مدير مدرسة :",null,null,null,{"$f":"VLOOKUP(O2,ahmed,5)","v":"المدرسة الاعدادية 1"}]
[null,null,null,null,null,"تحية طيبة وبعد ،،،"]
[]
["نحيط سيادتكم علماً بأن السيد :",null,null,null,{"$f":"VLOOKUP(O2,ahmed,2)","v":"مدرس 1"}]
["الموظف بمدرستكم قد حضر امتحانات الثانوية العامة للعام الدراسي 2018-2019 \n"]
["بلجنة مدرسة ",null,null,{"$f":"ورقة2!C3","v":0}]
["في الفترة من 8-6-2019 إلي 3-7-2019"]
["علماً بأنه تغيب عدد  ",null,{"$f":"VLOOKUP(O2,ahmed,11)","v":0},"يومًا"," بالتواريخ الأتية   "]
[null,{"$f":"VLOOKUP(O2,ahmed,7)","v":0},null,"،،،",{"$f":"VLOOKUP(O2,ahmed,8)","v":0},null,"،،،",{"$f":"VLOOKUP(O2,ahmed,9)","v":0},null,"،،،",{"$f":"VLOOKUP(O2,ahmed,10)","v":0}]
[null,"هذا للعلم ولكم جزيل الشكر ،،،"]
[]
[null,"المراقب الأول ",null,null,null,null,null,null,null,"رئيس اللجنة "]
[]
[]
[]
["وزارة التربية والتعليم ",null,null,null,null,null,null,null,null,null,"2018-2019"]
["الإدارة العامة للأمتحانات ",null,null,null,null,null,"اخلاء طرف "]
["لجنة الإدارة _ قطاع "]
[]
["مديرية التربية والتعليم بـ",null,null,{"$f":"VLOOKUP(O2+1,ahmed,3)","v":0},null,null,null,null,null,null,"إدارة",{"$f":"VLOOKUP(O2+1,ahmed,4)","v":0}]
["لجنة مدرسة :",null,{"$f":"ورقة2!C3","v":0},null,null,null,null,null,null,null," : رقم ",{"$f":"ورقة2!C4","v":0}]
[null,"السيد الأستاذ مدير مدرسة :",null,null,null,{"$f":"VLOOKUP(O2,ahmed,5)","v":"المدرسة الاعدادية 1"}]
[null,null,null,null,null,"تحية طيبة وبعد ،،،"]
[]
["نحيط سيادتكم علماً بأن السيد :",null,null,null,{"$f":"VLOOKUP(O2+1,ahmed,2)","v":"مدرس 2"}]
[]
["الموظف بمدرستكم قد حضر امتحانات الثانوية العامة للعام الدراسي 2018-2019 \n"]
["بلجنة مدرسة ",null,null,{"$f":"ورقة2!C3","v":0}]
["في الفترة من 8-6-2019 إلي 3-7-2019"]
["علماً بأنه تغيب عدد  ",null,{"$f":"VLOOKUP(O2+1,ahmed,11)","v":0},"يومًا"," بالتواريخ الأتية   "]
[null,{"$f":"VLOOKUP(O2+1,ahmed,7)","v":0},null,"،،،",{"$f":"VLOOKUP(O2+1,ahmed,8)","v":0},null,"،،،",{"$f":"VLOOKUP(O2+1,ahmed,9)","v":0},null,"،،،",{"$f":"VLOOKUP(O2+1,ahmed,10)","v":0}]
[null,"هذا للعلم ولكم جزيل الشكر ،،،"]
[null,"المراقب الأول ",null,null,null,null,null,null,null,"رئيس اللجنة "]

{"sheet":"ورقة2","index":1,"n_rows":105,"n_cols":11,"rows_kept":105,"cut":false,"hidden":false,"merged":[[4,6,4,9]]}
[null,"مديرية التربية والتعليم","س"]
[null,"قطاع","ص"]
[null,"لجنة مدرسة"]
[null,"رقم",null,null,null,"قائمة بالاسماء والدارس و التكليف"]
["م","الاسم","المديرية التعليمية","الإدارة التعليمية","المدرسة التابع لها","العمل المكلف به","أيام الغياب",null,null,null,"عدد أيام الغياب"]
[1,"مدرس 1",null,null,"المدرسة الاعدادية 1","عمل التكليف 1",null,null,null,null,{"$f":"COUNTA(G6:J6)","v":0}]
[2,"مدرس 2",null,null,"المدرسة الاعدادية 2","عمل التكليف 2",null,null,null,null,{"$f":"COUNTA(G7:J7)","v":0}]
[3,"مدرس 3",null,null,"المدرسة الاعدادية 3","عمل التكليف 3",null,null,null,null,0]
[4,"مدرس 4",null,null,"المدرسة الاعدادية 4","عمل التكليف 4",null,null,null,null,0]
[5,"مدرس 5",null,null,"المدرسة الاعدادية 5","عمل التكليف 5",null,null,null,null,0]
[6,"مدرس 6",null,null,"المدرسة الاعدادية 6","عمل التكليف 6",null,null,null,null,0]
[7,"مدرس 7",null,null,"المدرسة الاعدادية 7","عمل التكليف 7",null,null,null,null,0]
[8,"مدرس 8",null,null,"المدرسة الاعدادية 8","عمل التكليف 8",null,null,null,null,0]
[9,"مدرس 9",null,null,"المدرسة الاعدادية 9","عمل التكليف 9",null,null,null,null,0]
[10,"مدرس 10",null,null,"المدرسة الاعدادية 10","عمل التكليف 10",null,null,null,null,0]
[11,"مدرس 11",null,null,"المدرسة الاعدادية 11","عمل التكليف 11",null,null,null,null,0]
[12,"مدرس 12",null,null,"المدرسة الاعدادية 12","عمل التكليف 12",null,null,null,null,0]
[13,"مدرس 13",null,null,"المدرسة الاعدادية 13","عمل التكليف 13",null,null,null,null,0]
[14,"مدرس 14",null,null,"المدرسة الاعدادية 14","عمل التكليف 14",null,null,null,null,0]
[15,"مدرس 15",null,null,"المدرسة الاعدادية 15","عمل التكليف 15",null,null,null,null,0]
[16,"مدرس 16",null,null,"المدرسة الاعدادية 16","عمل التكليف 16",null,null,null,null,0]
[17,"مدرس 17",null,null,"المدرسة الاعدادية 17","عمل التكليف 17",null,null,null,null,0]
[18,"مدرس 18",null,null,"المدرسة الاعدادية 18","عمل التكليف 18",null,null,null,null,0]
[19,"مدرس 19",null,null,"المدرسة الاعدادية 19","عمل التكليف 19",null,null,null,null,0]
[20,"مدرس 20",null,null,"المدرسة الاعدادية 20","عمل التكليف 20",null,null,null,null,0]
[21,"مدرس 21",null,null,"المدرسة الاعدادية 21","عمل التكليف 21",null,null,null,null,0]
[22,"مدرس 22",null,null,"المدرسة الاعدادية 22","عمل التكليف 22",null,null,null,null,0]
[23,"مدرس 23",null,null,"المدرسة الاعدادية 23","عمل التكليف 23",null,null,null,null,0]
[24,"مدرس 24",null,null,"المدرسة الاعدادية 24","عمل التكليف 24",null,null,null,null,0]
[25,"مدرس 25",null,null,"المدرسة الاعدادية 25","عمل التكليف 25",null,null,null,null,0]
[26,"مدرس 26",null,null,"المدرسة الاعدادية 26","عمل التكليف 26",null,null,null,null,0]
[27,"مدرس 27",null,null,"المدرسة الاعدادية 27","عمل التكليف 27",null,null,null,null,0]
[28,"مدرس 28",null,null,"المدرسة الاعدادية 28","عمل التكليف 28",null,null,null,null,0]
[29,"مدرس 29",null,null,"المدرسة الاعدادية 29","عمل التكليف 29",null,null,null,null,0]
[30,"مدرس 30",null,null,"المدرسة الاعدادية 30","عمل التكليف 30",null,null,null,null,0]
[31,"مدرس 31",null,null,"المدرسة الاعدادية 31","عمل التكليف 31",null,null,null,null,0]
[32,"مدرس 32",null,null,"المدرسة الاعدادية 32","عمل التكليف 32",null,null,null,null,0]
[33,"مدرس 33",null,null,"المدرسة الاعدادية 33","عمل التكليف 33",null,null,null,null,0]
[34,"مدرس 34",null,null,"المدرسة الاعدادية 34","عمل التكليف 34",null,null,null,null,0]
[35,"مدرس 35",null,null,"المدرسة الاعدادية 35","عمل التكليف 35",null,null,null,null,0]
[36,"مدرس 36",null,null,"المدرسة الاعدادية 36","عمل التكليف 36",null,null,null,null,0]
[37,"مدرس 37",null,null,"المدرسة الاعدادية 37","عمل التكليف 37",null,null,null,null,0]
[38,"مدرس 38",null,null,"المدرسة الاعدادية 38","عمل التكليف 38",null,null,null,null,0]
[39,"مدرس 39",null,null,"المدرسة الاعدادية 39","عمل التكليف 39",null,null,null,null,0]
[40,"مدرس 40",null,null,"المدرسة الاعدادية 40","عمل التكليف 40",null,null,null,null,0]
[41,"مدرس 41",null,null,"المدرسة الاعدادية 41","عمل التكليف 41",null,null,null,null,0]
[42,"مدرس 42",null,null,"المدرسة الاعدادية 42","عمل التكليف 42",null,null,null,null,0]
[43,"مدرس 43",null,null,"المدرسة الاعدادية 43","عمل التكليف 43",null,null,null,null,0]
[44,"مدرس 44",null,null,"المدرسة الاعدادية 44","عمل التكليف 44",null,null,null,null,0]
[45,"مدرس 45",null,null,"المدرسة الاعدادية 45","عمل التكليف 45",null,null,null,null,0]
[46,"مدرس 46",null,null,"المدرسة الاعدادية 46","عمل التكليف 46",null,null,null,null,0]
[47,"مدرس 47",null,null,"المدرسة الاعدادية 47","عمل التكليف 47",null,null,null,null,0]
[48,"مدرس 48",null,null,"المدرسة الاعدادية 48","عمل التكليف 48",null,null,null,null,0]
[49,"مدرس 49",null,null,"المدرسة الاعدادية 49","عمل التكليف 49",null,null,null,null,0]
[50,"مدرس 50",null,null,"المدرسة الاعدادية 50","عمل التكليف 50",null,null,null,null,0]
[51,"مدرس 51",null,null,"المدرسة الاعدادية 51","عمل التكليف 51",null,null,null,null,0]
[52,"مدرس 52",null,null,"المدرسة الاعدادية 52","عمل التكليف 52",null,null,null,null,0]
[53,"مدرس 53",null,null,"المدرسة الاعدادية 53","عمل التكليف 53",null,null,null,null,0]
[54,"مدرس 54",null,null,"المدرسة الاعدادية 54","عمل التكليف 54",null,null,null,null,0]
[55,"مدرس 55",null,null,"المدرسة الاعدادية 55","عمل التكليف 55",null,null,null,null,0]
[56,"مدرس 56",null,null,"المدرسة الاعدادية 56","عمل التكليف 56",null,null,null,null,0]
[57,"مدرس 57",null,null,"المدرسة الاعدادية 57","عمل التكليف 57",null,null,null,null,0]
[58,"مدرس 58",null,null,"المدرسة الاعدادية 58","عمل التكليف 58",null,null,null,null,0]
[59,"مدرس 59",null,null,"المدرسة الاعدادية 59","عمل التكليف 59",null,null,null,null,0]
[60,"مدرس 60",null,null,"المدرسة الاعدادية 60","عمل التكليف 60",null,null,null,null,0]
[61,"مدرس 61",null,null,"المدرسة الاعدادية 61","عمل التكليف 61",null,null,null,null,0]
[62,"مدرس 62",null,null,"المدرسة الاعدادية 62","عمل التكليف 62",null,null,null,null,0]
[63,"مدرس 63",null,null,"المدرسة الاعدادية 63","عمل التكليف 63",null,null,null,null,0]
[64,"مدرس 64",null,null,"المدرسة الاعدادية 64","عمل التكليف 64",null,null,null,null,0]
[65,"مدرس 65",null,null,"المدرسة الاعدادية 65","عمل التكليف 65",null,null,null,null,0]
[66,"مدرس 66",null,null,"المدرسة الاعدادية 66","عمل التكليف 66",null,null,null,null,{"$f":"COUNTA(G71:J71)","v":0}]
[67,"مدرس 67",null,null,"المدرسة الاعدادية 67","عمل التكليف 67",null,null,null,null,0]
[68,"مدرس 68",null,null,"المدرسة الاعدادية 68","عمل التكليف 68",null,null,null,null,0]
[69,"مدرس 69",null,null,"المدرسة الاعدادية 69","عمل التكليف 69",null,null,null,null,0]
[70,"مدرس 70",null,null,"المدرسة الاعدادية 70","عمل التكليف 70",null,null,null,null,0]
[71,"مدرس 71",null,null,"المدرسة الاعدادية 71","عمل التكليف 71",null,null,null,null,0]
[72,"مدرس 72",null,null,"المدرسة الاعدادية 72","عمل التكليف 72",null,null,null,null,0]
[73,"مدرس 73",null,null,"المدرسة الاعدادية 73","عمل التكليف 73",null,null,null,null,0]
[74,"مدرس 74",null,null,"المدرسة الاعدادية 74","عمل التكليف 74",null,null,null,null,0]
[75,"مدرس 75",null,null,"المدرسة الاعدادية 75","عمل التكليف 75",null,null,null,null,0]
[76,"مدرس 76",null,null,"المدرسة الاعدادية 76","عمل التكليف 76",null,null,null,null,0]
[77,"مدرس 77",null,null,"المدرسة الاعدادية 77","عمل التكليف 77",null,null,null,null,0]
[78,"مدرس 78",null,null,"المدرسة الاعدادية 78","عمل التكليف 78",null,null,null,null,0]
[79,"مدرس 79",null,null,"المدرسة الاعدادية 79","عمل التكليف 79",null,null,null,null,0]
[80,"مدرس 80",null,null,"المدرسة الاعدادية 80","عمل التكليف 80",null,null,null,null,0]
[81,"مدرس 81",null,null,"المدرسة الاعدادية 81","عمل التكليف 81",null,null,null,null,0]
[82,"مدرس 82",null,null,"المدرسة الاعدادية 82","عمل التكليف 82",null,null,null,null,0]
[83,"مدرس 83",null,null,"المدرسة الاعدادية 83","عمل التكليف 83",null,null,null,null,0]
[84,"مدرس 84",null,null,"المدرسة الاعدادية 84","عمل التكليف 84",null,null,null,null,0]
[85,"مدرس 85",null,null,"المدرسة الاعدادية 85","عمل التكليف 85",null,null,null,null,0]
[86,"مدرس 86",null,null,"المدرسة الاعدادية 86","عمل التكليف 86",null,null,null,null,0]
[87,"مدرس 87",null,null,"المدرسة الاعدادية 87","عمل التكليف 87",null,null,null,null,0]
[88,"مدرس 88",null,null,"المدرسة الاعدادية 88","عمل التكليف 88",null,null,null,null,0]
[89,"مدرس 89",null,null,"المدرسة الاعدادية 89","عمل التكليف 89",null,null,null,null,0]
[90,"مدرس 90",null,null,"المدرسة الاعدادية 90","عمل التكليف 90",null,null,null,null,0]
[91,"مدرس 91",null,null,"المدرسة الاعدادية 91","عمل التكليف 91",null,null,null,null,0]
[92,"مدرس 92",null,null,"المدرسة الاعدادية 92","عمل التكليف 92",null,null,null,null,0]
[93,"مدرس 93",null,null,"المدرسة الاعدادية 93","عمل التكليف 93",null,null,null,null,0]
[94,"مدرس 94",null,null,"المدرسة الاعدادية 94","عمل التكليف 94",null,null,null,null,0]
[95,"مدرس 95",null,null,"المدرسة الاعدادية 95","عمل التكليف 95",null,null,null,null,0]
[96,"مدرس 96",null,null,"المدرسة الاعدادية 96","عمل التكليف 96",null,null,null,null,0]
[97,"مدرس 97",null,null,"المدرسة الاعدادية 97","عمل التكليف 97",null,null,null,null,0]
[98,"مدرس 98",null,null,"المدرسة الاعدادية 98","عمل التكليف 98",null,null,null,null,0]
[99,"مدرس 99",null,null,"المدرسة الاعدادية 99","عمل التكليف 99",null,null,null,null,0]
[100,"مدرس 100",null,null,"المدرسة الاعدادية 100","عمل التكليف 100",null,null,null,null,0]

{"sheet":"ورقة3","index":2,"n_rows":0,"n_cols":0,"rows_kept":0,"cut":false,"hidden":false,"merged":[]}